bitfinex-derivatives/quotes_BTCF0:USTF0_20250322
["timestamp","ask_amount","ask_price","bid_price","bid_amount"]
[1742631988156,0.51714294,84259.0,84258.0,0.1501081]
[1742631988548,0.51714294,84259.0,84258.0,0.03138]
[1742631988748,0.51714294,84259.0,84258.0,0.03078]
[1742631989047,0.51714294,84259.0,84258.0,0.1495081]
[1742631989247,0.51714294,84259.0,84258.0,0.1501081]
[1742631990250,0.51714294,84259.0,84258.0,0.03138]
[1742631990560,0.0593669,84255.0,84252.0,0.0321]
[1742631990759,0.2406278,84254.0,84253.0,0.0305]
[1742631990947,0.2413878,84254.0,84253.0,0.0305]
[1742631991148,0.2413878,84254.0,84253.0,0.03114]
[1742631991346,0.36007018,84254.0,84253.0,0.1498752]
[1742631992860,0.36007018,84254.0,84253.0,0.1508752]
[1742631993556,0.36007018,84254.0,84253.0,0.03214]
[1742631994561,0.57105452,84254.0,84253.0,0.03214]
[1742631998371,0.53905452,84254.0,84253.0,0.03375986]
[1742631998955,0.53905452,84254.0,84253.0,0.06595986]
[1742631999559,0.53905452,84254.0,84253.0,0.06611378]
[1742631999857,0.53905452,84254.0,84253.0,0.03391378]
[1742632000059,0.53905452,84254.0,84253.0,0.00341378]
[1742632000450,0.65145452,84254.0,84253.0,0.00341378]
[1742632004254,0.65145452,84254.0,84253.0,0.00277378]
[1742632005064,0.65145452,84254.0,84253.0,0.00350903]
[1742632006160,0.65145452,84254.0,84253.0,0.03674428]
[1742632007461,0.65145452,84254.0,84253.0,0.00439712]
[1742632008370,0.66624655,84254.0,84253.0,0.00439712]
[1742632008871,0.65145452,84254.0,84253.0,0.00439712]
[1742632009369,0.66624114,84254.0,84253.0,0.00439712]
[1742632009568,0.66624118,84254.0,84253.0,0.03629712]
[1742632009955,0.65145452,84254.0,84253.0,0.03629712]
[1742632010371,0.66623958,84254.0,84253.0,0.03629712]
[1742632010772,0.1187408,84249.0,84248.0,0.03107413]
[1742632010970,0.48988496,84249.0,84248.0,0.03167413]
[1742632011467,0.60857356,84249.0,84248.0,0.03167413]
[1742632011770,0.63039023,84249.0,84248.0,0.03167413]
[1742632012266,0.63039023,84249.0,84248.0,0.03367413]
[1742632013779,0.64198281,84249.0,84248.0,0.03367413]
[1742632013967,0.63039023,84249.0,84248.0,0.06547413]
[1742632014159,0.63039023,84249.0,84248.0,0.06707413]
[1742632014566,0.63039023,84249.0,84248.0,0.06854541]
[1742632015460,0.64209662,84249.0,84248.0,0.06854541]
[1742632015876,0.28129662,84249.0,84248.0,0.06854541]
[1742632016172,0.64209662,84249.0,84248.0,0.06854541]
[1742632017171,0.81932498,84249.0,84248.0,0.00507128]
[1742632017360,0.81932498,84249.0,84248.0,0.00447128]
[1742632018070,0.0593751,84243.0,84236.0,0.4086]
[1742632018275,0.1187521,84241.0,84240.0,0.0309]
[1742632018586,0.1195121,84241.0,84240.0,0.0315]
[1742632018778,0.44844593,84241.0,84240.0,0.0315]
[1742632019464,0.80924593,84241.0,84240.0,0.0315]
[1742632021075,0.81124593,84241.0,84240.0,0.0631]
[1742632023174,0.81124593,84241.0,84240.0,0.0315]
[1742632023677,0.81124593,84241.0,84240.0,0.0309]
[1742632025972,0.81124593,84241.0,84239.0,8e-05]
[1742632025973,0.1187535,84240.0,84239.0,8e-05]
[1742632026276,0.1187535,84240.0,84223.0,0.9812165]
[1742632026277,0.1187648,84232.0,84231.0,0.0945]
[1742632026473,0.1195248,84232.0,84231.0,0.0951]
[1742632027382,0.30074523,84232.0,84231.0,0.0951]
[1742632027878,0.30074523,84232.0,84231.0,0.0961]
[1742632028577,0.30074523,84232.0,84231.0,0.0971]
[1742632030077,0.30074523,84232.0,84231.0,0.0961]
[1742632030278,0.30374523,84232.0,84231.0,0.0961]
[1742632031279,0.30674523,84232.0,84231.0,0.0951]
[1742632041101,0.4844955,84232.0,84231.0,0.0951]
[1742632063107,0.69721628,84232.0,84231.0,0.0951]
[1742632066811,0.4844955,84232.0,84231.0,0.0951]
[1742632068213,0.4844955,84232.0,84231.0,0.0647]
[1742632069815,0.4844955,84232.0,84231.0,0.0967]
[1742632074823,0.4844955,84232.0,84231.0,0.0961]
[1742632075127,0.4844955,84232.0,84231.0,0.09686]
[1742632077824,0.69721628,84232.0,84231.0,0.09686]
[1742632078618,0.69721628,84232.0,84231.0,0.0961]
[1742632078926,0.69721628,84232.0,84231.0,0.09678]
[1742632080628,0.69721628,84232.0,84231.0,0.0961]
[1742632080824,0.69721628,84232.0,84231.0,0.0967]
[1742632081026,0.69721628,84232.0,84231.0,0.0315]
[1742632081530,0.69721628,84232.0,84231.0,0.0625]
[1742632082123,0.69721628,84232.0,84231.0,0.0933]
[1742632083322,0.69721628,84232.0,84231.0,0.0006]
[1742632084526,0.69721628,84232.0,84230.0,8e-05]
[1742632084527,0.1187662,84231.0,84230.0,8e-05]
[1742632084826,0.1524062,84231.0,84230.0,0.03168]
[1742632085133,0.72068388,84231.0,84230.0,0.00068]
[1742632085332,0.72068388,84231.0,84230.0,8e-05]
[1742632085333,0.86980572,84231.0,84230.0,8e-05]
[1742632085534,0.118769,84229.0,84228.0,0.031]
[1742632085724,0.119529,84229.0,84228.0,0.031]
[1742632085927,0.360353,84229.0,84228.0,0.031]
[1742632086234,0.47907765,84229.0,84228.0,0.031]
[1742632086436,0.47907765,84229.0,84228.0,0.063]
[1742632087828,0.48107765,84229.0,84228.0,0.063]
[1742632088136,0.95241951,84229.0,84228.0,0.063]
[1742632088433,0.96443652,84229.0,84228.0,0.063]
[1742632089232,0.96643652,84229.0,84228.0,0.063]
[1742632090524,1.07927652,84229.0,84228.0,0.063]
[1742632092133,0.96873466,84229.0,84228.0,0.063]
[1742632093432,0.96873466,84229.0,84228.0,0.031]
[1742632093644,0.96873466,84229.0,84228.0,0.0627]
[1742632095842,0.95671765,84229.0,84228.0,0.0627]
[1742632098231,0.59591765,84229.0,84228.0,0.0627]
[1742632098433,0.95671765,84229.0,84228.0,0.06334]
[1742632099342,1.16966411,84229.0,84228.0,0.06334]
[1742632099540,1.16966411,84229.0,84228.0,0.0627]
[1742632099840,0.80886411,84229.0,84228.0,0.0627]
[1742632100031,1.16966411,84229.0,84228.0,0.0633]
[1742632100229,1.16966411,84229.0,84228.0,0.0627]
[1742632103938,0.80886411,84229.0,84228.0,0.0627]
[1742632104139,1.16966411,84229.0,84228.0,0.0633]
[1742632104338,0.80886411,84229.0,84228.0,0.0627]
[1742632104546,1.16966411,84229.0,84228.0,0.0633]
[1742632104740,1.16966411,84229.0,84228.0,0.0627]
[1742632106336,0.95671765,84229.0,84228.0,0.0627]
[1742632106733,0.95671765,84229.0,84228.0,0.06338]
[1742632110346,0.59591765,84229.0,84228.0,0.06338]
[1742632110547,0.95671765,84229.0,84228.0,0.06338]
[1742632111649,0.84387765,84229.0,84228.0,0.06338]
[1742632111941,0.95659765,84229.0,84228.0,0.06338]
[1742632113444,0.59579765,84229.0,84228.0,0.06338]
[1742632114236,0.59579765,84229.0,84228.0,0.0627]
[1742632114546,0.59579765,84229.0,84228.0,0.0633]
[1742632115039,0.59579765,84229.0,84228.0,0.0627]
[1742632115848,0.59579765,84229.0,84228.0,0.06338]
[1742632116159,0.59579765,84229.0,84228.0,0.0627]
[1742632116348,0.59579765,84229.0,84228.0,0.0633]
[1742632120447,0.59579765,84229.0,84228.0,0.1820704]
[1742632120448,0.48307765,84229.0,84228.0,0.1820704]
[1742632120648,0.53245765,84229.0,84228.0,0.1820704]
[1742632121042,0.41977765,84229.0,84228.0,0.1820704]
[1742632121243,0.24825804,84237.0,84236.0,0.1187592]
[1742632121451,0.36765574,84237.0,84236.0,0.1187592]
[1742632121645,0.54458493,84237.0,84236.0,0.1187592]
[1742632121849,0.54458493,84237.0,84236.0,0.1193992]
[1742632122051,0.72680958,84237.0,84236.0,0.1820992]
[1742632122242,0.72680958,84237.0,84236.0,0.1814592]
[1742632122648,0.72680958,84237.0,84236.0,0.1821392]
[1742632123154,0.73080958,84237.0,84236.0,0.1821392]
[1742632123750,0.73480958,84237.0,84236.0,0.1821392]
[1742632124443,0.49438039,84237.0,84236.0,0.1821392]
[1742632124844,0.24612235,84237.0,84236.0,0.1821392]
[1742632125551,0.30962235,84237.0,84236.0,0.1821392]
[1742632150963,0.30898235,84237.0,84236.0,0.1821392]
[1742632153066,0.30970235,84237.0,84236.0,0.1821392]
[1742632168667,0.19094465,84237.0,84236.0,0.5429392]
[1742632168860,0.30970235,84237.0,84236.0,2.0429392]
[1742632169060,0.30898235,84237.0,84236.0,2.0429392]
[1742632173475,0.30898235,84237.0,84236.0,1.6821392]
[1742632173678,0.30898235,84237.0,84236.0,2.0429392]
[1742632173878,0.07252245,84237.0,84236.0,2.0429392]
[1742632174776,0.21299965,84245.0,84244.0,0.1187479]
[1742632174980,0.21299965,84245.0,84244.0,0.8626279]
[1742632175171,0.21363965,84245.0,84244.0,0.8626279]
[1742632175475,0.24413965,84245.0,84244.0,2.3626279]
[1742632176188,0.24413965,84245.0,84244.0,0.8626279]
[1742632177379,0.24413965,84245.0,84244.0,0.86410092]
[1742632177786,0.24713965,84245.0,84244.0,0.86410092]
[1742632177979,0.03414,84245.0,84244.0,0.86410092]
[1742632178171,0.0335,84245.0,84244.0,0.86410092]
[1742632178581,0.03422,84245.0,84244.0,0.86410092]
[1742632178971,0.03422,84245.0,84244.0,1.27270092]
[1742632179974,0.03422,84245.0,84244.0,0.91190092]
[1742632180173,0.0335,84245.0,84244.0,1.27270092]
[1742632183085,0.0335,84245.0,84244.0,1.27343554]
[1742632186976,0.0335,84245.0,84244.0,1.30573554]
[1742632187987,0.0645,84245.0,84244.0,1.30573554]
[1742632192981,0.1832465,84245.0,84244.0,1.30573554]
[1742632193585,0.1832465,84245.0,84244.0,1.33643554]
[1742632193779,0.0645,84245.0,84244.0,1.33643554]
[1742632194180,0.0645,84245.0,84244.0,0.97563554]
[1742632194374,0.06514,84245.0,84244.0,0.97563554]
[1742632194587,0.06514,84245.0,84244.0,1.33643554]
[1742632194779,0.0645,84245.0,84244.0,1.33643554]
[1742632196086,0.1832465,84245.0,84244.0,1.33643554]
[1742632196281,0.1838865,84245.0,84244.0,1.33643554]
[1742632197181,0.1832465,84245.0,84244.0,1.33643554]
[1742632200693,0.1832465,84245.0,84244.0,0.97563554]
[1742632200996,0.1838865,84245.0,84244.0,1.33643554]
[1742632201294,0.1832465,84245.0,84244.0,1.33643554]
[1742632201491,0.0645,84245.0,84244.0,1.33643554]
[1742632203497,0.0645,84245.0,84244.0,0.97563554]
[1742632204197,0.1839265,84245.0,84244.0,0.97563554]
[1742632209098,0.1838865,84245.0,84244.0,0.97563554]
[1742632212499,0.29312798,84245.0,84244.0,0.97563554]
[1742632216496,0.1832465,84245.0,84244.0,0.97563554]
[1742632216697,0.1838865,84245.0,84244.0,0.97563554]
[1742632220298,0.06514,84245.0,84244.0,0.97563554]
[1742632220495,0.1838865,84245.0,84244.0,0.97563554]
[1742632222203,0.06514,84245.0,84244.0,0.97563554]
[1742632222590,0.0645,84245.0,84244.0,0.97563554]
[1742632224005,0.1832465,84245.0,84244.0,0.97563554]
[1742632224411,0.1832465,84245.0,84244.0,1.33643554]
[1742632226293,0.1832465,84245.0,84244.0,0.97563554]
[1742632226496,0.1832465,84245.0,84244.0,1.33643554]
[1742632230214,0.0645,84245.0,84244.0,1.33643554]
[1742632230512,0.0645,84245.0,84244.0,0.97563554]
[1742632230699,0.0645,84245.0,84244.0,1.33643554]
[1742632232407,0.0645,84245.0,84244.0,0.97563554]
[1742632232607,0.06518,84245.0,84244.0,1.33643554]
[1742632232905,0.0645,84245.0,84244.0,1.33643554]
[1742632233314,0.0645,84245.0,84244.0,0.97563554]
[1742632233506,0.06522,84245.0,84244.0,0.97563554]
[1742632233707,0.06522,84245.0,84244.0,1.33643554]
[1742632234011,0.0645,84245.0,84244.0,1.33643554]
[1742632235012,0.1832465,84245.0,84244.0,1.33643554]
[1742632235206,0.0645,84245.0,84244.0,1.33643554]
[1742632236609,0.0645,84245.0,84244.0,0.97563554]
[1742632236812,0.1838865,84245.0,84244.0,1.33643554]
[1742632237115,0.1832465,84245.0,84244.0,1.33643554]
[1742632237814,0.1832465,84245.0,84244.0,0.97563554]
[1742632238011,0.1832465,84245.0,84244.0,1.33643554]
[1742632240110,0.0645,84245.0,84244.0,1.33643554]
[1742632241418,0.0645,84245.0,84244.0,0.97563554]
[1742632241818,0.0645,84245.0,84244.0,1.33643554]
[1742632242612,0.0645,84245.0,84244.0,0.97563554]
[1742632242821,0.0645,84245.0,84244.0,1.33643554]
[1742632245720,0.1832465,84245.0,84244.0,1.33643554]
[1742632245921,0.0645,84245.0,84244.0,1.33643554]
[1742632246321,0.1832465,84245.0,84244.0,1.33643554]
[1742632247725,0.1832465,84245.0,84244.0,0.97563554]
[1742632248024,0.18384651,84245.0,84244.0,1.33643554]
[1742632248224,0.1832465,84245.0,84244.0,1.33643554]
[1742632251028,0.0645,84245.0,84244.0,1.33643554]
[1742632251619,0.1832465,84245.0,84244.0,1.33643554]
[1742632251815,0.0645,84245.0,84244.0,1.33643554]
[1742632252829,0.1832465,84245.0,84244.0,1.33643554]
[1742632253825,0.1832465,84245.0,84244.0,0.97563554]
[1742632254032,0.1832465,84245.0,84244.0,1.33643554]
[1742632257531,0.0645,84245.0,84244.0,1.33643554]
[1742632267860,0.1832465,84245.0,84244.0,1.33643554]
[1742632269359,0.1832465,84245.0,84244.0,0.97563554]
[1742632269660,0.1839665,84245.0,84244.0,1.33643554]
[1742632269860,0.30194861,84245.0,84244.0,0.77224764]
[1742632270055,0.59377401,84245.0,84244.0,0.41080764]
[1742632270255,0.59377401,84245.0,84235.0,0.09577825]
[1742632270256,0.1187592,84236.0,84235.0,0.09577825]
[1742632270463,0.4802792,84236.0,84235.0,0.0006]
[1742632270652,0.118769,84229.0,84226.0,0.21455145]
[1742632270958,0.118769,84229.0,84228.0,0.21396999]
[1742632271159,0.119489,84229.0,84228.0,0.21396999]
[1742632271351,0.23820379,84229.0,84228.0,0.21396999]
[1742632271551,0.33160379,84229.0,84228.0,0.21396999]
[1742632271861,0.33160379,84229.0,84228.0,0.33274039]
[1742632272459,0.33160379,84229.0,84228.0,0.21396999]
[1742632273051,0.33360379,84229.0,84228.0,0.21396999]
[1742632274566,0.33360379,84229.0,84228.0,0.0006]
[1742632275468,0.33360379,84229.0,84228.0,0.1193704]
[1742632279163,0.33360379,84229.0,84228.0,0.0006]
[1742632279467,0.1187718,84227.0,84226.0,0.21455155]
[1742632279666,0.1194918,84227.0,84226.0,0.1193733]
[1742632280366,0.23821645,84227.0,84226.0,0.1193733]
[1742632281466,0.23921645,84227.0,84226.0,0.1193733]
[1742632281967,0.24021645,84227.0,84226.0,0.1193733]
[1742632285565,0.24021645,84227.0,84226.0,0.0006]
[1742632286966,0.30531645,84227.0,84226.0,0.0006]
[1742632288464,0.30731645,84227.0,84226.0,0.0006]
[1742632288968,0.18854465,84227.0,84226.0,0.1193733]
[1742632289173,0.30631645,84227.0,84226.0,0.1834733]
[1742632289473,0.30631645,84227.0,84226.0,0.2159733]
[1742632295969,0.30631645,84227.0,84226.0,0.0972]
[1742632296274,0.30631645,84227.0,84226.0,0.1834733]
[1742632297675,0.30631645,84227.0,84226.0,0.2137733]
[1742632304281,0.51875364,84227.0,84226.0,0.2137733]
[1742632306778,0.51875364,84227.0,84226.0,0.095]
[1742632307181,0.51875364,84227.0,84226.0,0.2137733]
[1742632307884,0.30631645,84227.0,84226.0,0.2137733]
[1742632310785,0.30631645,84227.0,84226.0,0.095]
[1742632310983,0.51875364,84227.0,84226.0,0.095]
[1742632311477,0.51875364,84227.0,84226.0,0.0944]
[1742632313288,0.51875364,84227.0,84226.0,0.095]
[1742632313690,0.51875364,84227.0,84226.0,0.0944]
[1742632313990,0.51875364,84227.0,84226.0,0.095]
[1742632313991,0.30631645,84227.0,84226.0,0.095]
[1742632318584,0.30631645,84227.0,84226.0,0.0944]
[1742632318992,0.30631645,84227.0,84226.0,0.095]
[1742632320783,0.41171565,84227.0,84226.0,0.095]
[1742632320983,0.41171565,84227.0,84226.0,0.2137733]
[1742632321695,0.41171565,84227.0,84226.0,0.095]
[1742632321990,0.41171565,84227.0,84226.0,0.0944]
[1742632322592,0.41171565,84227.0,84226.0,0.09512]
[1742632323492,0.41171565,84227.0,84226.0,0.0944]
[1742632323693,0.41171565,84227.0,84226.0,0.095]
[1742632327195,0.30631645,84227.0,84226.0,0.095]
[1742632329897,0.30631645,84227.0,84226.0,0.2137733]
[1742632330101,0.30631645,84227.0,84226.0,0.095]
[1742632330689,0.30631645,84227.0,84226.0,0.2137733]
[1742632333098,0.30631645,84227.0,84226.0,0.095]
[1742632333293,0.30631645,84227.0,84226.0,0.0944]
[1742632333492,0.30631645,84227.0,84226.0,0.2137733]
[1742632333793,0.30631645,84227.0,84226.0,0.095]
[1742632333996,0.41333509,84227.0,84226.0,0.095]
[1742632334390,0.41333509,84227.0,84226.0,0.2137733]
[1742632334995,0.41333509,84227.0,84226.0,0.095]
[1742632336005,0.41333509,84227.0,84226.0,0.2137733]
[1742632336503,0.41333509,84227.0,84226.0,0.095]
[1742632336704,0.41333509,84227.0,84226.0,0.0944]
[1742632337509,0.41333509,84227.0,84226.0,0.09504]
[1742632338102,0.41333509,84227.0,84226.0,0.0944]
[1742632339600,0.41333509,84227.0,84226.0,0.09504]
[1742632340193,0.41333509,84227.0,84226.0,0.06474]
[1742632340399,0.41333509,84227.0,84226.0,0.0641]
[1742632340700,0.41333509,84227.0,84226.0,0.0647]
[1742632340907,0.41333509,84227.0,84226.0,0.0942]
[1742632341603,0.41333509,84227.0,84226.0,0.09484]
[1742632342497,0.41333509,84227.0,84226.0,0.0942]
[1742632342697,0.41333509,84227.0,84226.0,0.09484]
[1742632343406,0.41333509,84227.0,84226.0,0.0942]
[1742632345907,0.30631645,84227.0,84226.0,0.0942]
[1742632346107,0.30631645,84227.0,84226.0,0.0948]
[1742632348604,0.30631645,84227.0,84226.0,0.0942]
[1742632349307,0.30631645,84227.0,84226.0,0.09484]
[1742632351918,0.41599055,84227.0,84226.0,0.09484]
[1742632353919,0.41599055,84227.0,84226.0,0.0942]
[1742632355321,0.41599055,84227.0,84226.0,0.0948]
[1742632356124,0.41599055,84227.0,84226.0,0.0006]
[1742632357019,0.41599055,84227.0,84226.0,0.0648]
[1742632358317,0.51957913,84227.0,84226.0,0.0648]
[1742632361824,0.51957913,84227.0,84226.0,0.0642]
[1742632362833,0.51957913,84227.0,84226.0,0.0648]
[1742632363328,0.51957913,84227.0,84226.0,0.1835733]
[1742632363525,0.51957913,84227.0,84226.0,0.0648]
[1742632364937,0.51957913,84227.0,84226.0,0.1835733]
[1742632365740,0.51957913,84227.0,84226.0,0.1829733]
[1742632365741,0.4171966,84227.0,84226.0,0.1829733]
[1742632365937,0.4171966,84227.0,84226.0,0.1835733]
[1742632369841,0.4171966,84227.0,84226.0,0.0648]
[1742632374250,0.4171966,84227.0,84226.0,0.0642]
[1742632377439,0.4171966,84227.0,84226.0,0.0648]
[1742632377835,0.4171966,84227.0,84226.0,0.0642]
[1742632378644,0.4171966,84227.0,84226.0,0.065]
[1742632378840,0.4171966,84227.0,84226.0,0.0642]
[1742632379144,0.4171966,84227.0,84226.0,0.0648]
[1742632379746,0.4171966,84227.0,84226.0,0.0318]
[1742632379944,0.1187733,84226.0,84225.0,8e-05]
[1742632380146,0.1830933,84226.0,84225.0,0.00068]
[1742632380546,0.1830933,84226.0,84225.0,0.03338]
[1742632380845,0.30182077,84226.0,84225.0,0.06558]
[1742632381248,0.30582077,84226.0,84225.0,0.06558]
[1742632382139,0.30582077,84226.0,84225.0,0.00068]
[1742632382651,0.30682077,84226.0,84225.0,0.0006]
[1742632382847,0.42955305,84226.0,84225.0,0.0006]
[1742632383048,0.41770092,84226.0,84225.0,0.0006]
[1742632384347,0.1187747,84225.0,84224.0,0.03198]
[1742632384548,0.1195747,84225.0,84224.0,0.03266]
[1742632384748,0.1843747,84225.0,84224.0,0.03266]
[1742632385140,0.30310358,84225.0,84224.0,0.03266]
[1742632385740,0.30410358,84225.0,84224.0,0.03266]
[1742632386040,0.30810358,84225.0,84224.0,0.03266]
[1742632386452,0.30810358,84225.0,84224.0,0.03198]
[1742632387149,0.30810358,84225.0,84224.0,0.03266]
[1742632387150,0.41898373,84225.0,84224.0,0.03266]
[1742632387350,0.41898373,84225.0,84224.0,0.09506]
[1742632388143,0.41898373,84225.0,84224.0,0.2138361]
[1742632388455,0.41898373,84225.0,84224.0,0.09506]
[1742632390059,0.30810358,84225.0,84224.0,0.09506]
[1742632391639,0.30810358,84225.0,84224.0,0.2138361]
[1742632392760,0.30810358,84225.0,84224.0,0.09506]
[1742632393947,0.30810358,84225.0,84224.0,0.2138361]
[1742632394458,0.30810358,84225.0,84224.0,0.09506]
[1742632399457,0.48015488,84225.0,84211.0,0.0593966]
[1742632399660,0.1781781,84219.0,84218.0,0.1835812]
[1742632399850,0.17913811,84219.0,84218.0,0.1842612]
[1742632400060,0.35746471,84219.0,84218.0,0.1842612]
[1742632400354,0.47620346,84219.0,84218.0,0.1842612]
[1742632400860,0.47720346,84219.0,84218.0,0.2156612]
[1742632401068,0.50870346,84219.0,84218.0,0.2156612]
[1742632401958,0.50870346,84219.0,84218.0,0.2277726]
[1742632402859,0.51070346,84219.0,84218.0,0.2277726]
[1742632406058,0.51070346,84219.0,84218.0,0.03258]
[1742632406564,0.51070346,84219.0,84218.0,0.06288]
[1742632408164,0.51070346,84219.0,84218.0,0.09338]
[1742632410268,0.95576536,84219.0,84200.0,0.1]
[1742632410559,0.1188128,84198.0,84192.0,0.42630227]
[1742632410761,0.2329328,84198.0,84197.0,0.35650979]
[1742632411069,0.410979,84198.0,84197.0,0.35650979]
[1742632411273,0.52974737,84198.0,84197.0,0.35650979]
[1742632411468,0.56234737,84198.0,84197.0,0.35650979]
[1742632411669,0.56234737,84198.0,84197.0,0.0006]
[1742632411968,0.1188212,84192.0,84191.0,0.35590979]
[1742632412168,0.4809812,84192.0,84191.0,0.35654979]
[1742632412358,0.1188297,84186.0,84185.0,0.36630227]
[1742632412558,0.2331497,84186.0,84185.0,0.36630227]
[1742632412867,0.41243588,84186.0,84185.0,0.36630227]
[1742632413271,0.53122118,84186.0,84185.0,0.36630227]
[1742632413464,0.56452118,84186.0,84185.0,0.36630227]
[1742632413763,0.56552118,84186.0,84185.0,0.36630227]
[1742632414062,0.56652118,84186.0,84185.0,0.36630227]
[1742632414271,0.0594199,84179.0,84175.0,0.49812209]
[1742632414466,0.1188438,84176.0,84175.0,0.49812209]
[1742632414661,0.1203638,84176.0,84175.0,0.49812209]
[1742632414863,0.29903321,84176.0,84175.0,0.49812209]
[1742632415066,0.41781851,84176.0,84175.0,0.49812209]
[1742632416266,0.1188495,84172.0,84171.0,0.06458]
[1742632416464,0.00152,84172.0,84171.0,0.06458]
[1742632416657,0.17874593,84172.0,84171.0,0.5442309]
[1742632417060,0.29754534,84172.0,84171.0,2.0442309]
[1742632417266,0.29602534,84172.0,84171.0,2.0442309]
[1742632417759,0.29702534,84172.0,84171.0,2.0442309]
[1742632417956,0.41587484,84172.0,84171.0,2.0442309]
[1742632418156,0.29854534,84172.0,84171.0,2.0442309]
[1742632419061,0.41587484,84172.0,84171.0,2.0442309]
[1742632419472,0.29854534,84172.0,84171.0,2.0442309]
[1742632419675,0.29702534,84172.0,84171.0,2.0442309]
[1742632419878,0.41739484,84172.0,84171.0,2.0442309]
[1742632420372,0.12131941,84172.0,84171.0,2.0442309]
[1742632420572,0.11979941,84172.0,84171.0,2.0442309]
[1742632420962,0.10585786,84175.0,84174.0,0.1188466]
[1742632422663,0.10585786,84175.0,84174.0,0.3888466]
[1742632422873,0.10685786,84175.0,84174.0,0.3888466]
[1742632423171,0.10785786,84175.0,84174.0,0.3888466]
[1742632424074,0.002,84175.0,84174.0,0.3888466]
[1742632430679,0.1208452,84175.0,84174.0,0.3888466]
[1742632430978,0.002,84175.0,84174.0,0.3888466]
[1742632431370,0.002,84175.0,84174.0,0.1188466]
[1742632432967,0.002,84175.0,84174.0,0.1809466]
[1742632437688,0.002,84175.0,84174.0,0.5417466]
[1742632437884,0.1208452,84175.0,84174.0,0.5417466]
[1742632438080,0.23964602,84175.0,84174.0,0.6553466]
[1742632438276,0.24120603,84175.0,84174.0,0.6553466]
[1742632438679,0.23964602,84175.0,84174.0,0.6553466]
[1742632440084,0.12080082,84175.0,84174.0,0.6553466]
[1742632440587,0.002,84175.0,84174.0,0.6553466]
[1742632441390,0.002,84175.0,84174.0,2.1553466]
[1742632445682,0.0651,84175.0,84174.0,2.1553466]
[1742632447693,0.0651,84175.0,84174.0,2.4353466]
[1742632448396,0.12288046,84175.0,84174.0,2.4353466]
[1742632449789,0.12288046,84175.0,84174.0,2.45065251]
[1742632451791,0.12288046,84175.0,84174.0,0.95065251]
[1742632452983,0.12288046,84175.0,84174.0,0.95059451]
[1742632456995,0.12288046,84175.0,84174.0,0.9655862]
[1742632457298,0.1188287,84187.0,84184.0,0.1188325]
[1742632457603,0.00177817,84185.0,84184.0,0.13382419]
[1742632457793,0.1805931,84185.0,84184.0,0.13382419]
[1742632457998,0.29939392,84185.0,84184.0,0.19742419]
[1742632458685,0.30339392,84185.0,84184.0,0.19742419]
[1742632459091,0.42222502,84185.0,84184.0,0.19742419]
[1742632459299,0.30639392,84185.0,84184.0,0.19742419]
[1742632460195,0.24825804,84191.0,84190.0,0.118824]
[1742632460399,0.0314,84195.0,84194.0,0.1188184]
[1742632460690,0.28414249,84196.0,84194.0,0.1188184]
[1742632460691,0.2851825,84196.0,84195.0,0.184817]
[1742632460896,0.28414249,84196.0,84195.0,0.48332167]
[1742632461097,0.0314,84205.0,84204.0,0.1188043]
[1742632461397,0.15124291,84205.0,84204.0,0.1194043]
[1742632461596,0.36103136,84205.0,84204.0,0.1194043]
[1742632461791,0.36103136,84205.0,84204.0,0.16589599]
[1742632462099,0.47980255,84205.0,84204.0,0.16589599]
[1742632462298,0.48180255,84205.0,84204.0,0.1509043]
[1742632463590,0.48180255,84205.0,84204.0,0.1194043]
[1742632465402,0.48180255,84205.0,84204.0,0.1511043]
[1742632466498,0.48180255,84205.0,84204.0,0.1837043]
[1742632466891,0.51300255,84205.0,84204.0,0.1837043]
[1742632467801,0.51300255,84205.0,84204.0,0.1511043]
[1742632470202,0.51300255,84205.0,84204.0,0.1840043]
[1742632473103,0.48180255,84205.0,84204.0,0.3298843]
[1742632473806,0.62340956,84205.0,84204.0,0.3298843]
[1742632475702,0.62340956,84205.0,84204.0,0.2154043]
[1742632475910,0.62340956,84205.0,84204.0,0.1840043]
[1742632477702,0.48180255,84205.0,84204.0,0.1840043]
[1742632481013,0.53956583,84205.0,84204.0,0.1840043]
[1742632485011,0.42076293,84205.0,84204.0,0.1840043]
[1742632485409,0.53956583,84205.0,84204.0,0.1840043]
[1742632485607,0.48180255,84205.0,84204.0,0.1840043]
[1742632486209,0.36299965,84205.0,84204.0,0.1840043]
[1742632487117,0.48180255,84205.0,84204.0,0.1840043]
[1742632491409,0.75205678,84205.0,84204.0,0.1840043]
[1742632494917,0.53956572,84205.0,84204.0,0.2984043]
[1742632498817,0.67308522,84205.0,84204.0,0.2984043]
[1742632502224,0.82906732,84205.0,84204.0,0.2984043]
[1742632506339,0.75285119,84205.0,84204.0,0.2984043]
[1742632510829,0.53956572,84205.0,84204.0,0.2984043]
[1742632511634,0.42076282,84205.0,84204.0,0.2984043]
[1742632511840,0.42076282,84205.0,84204.0,0.31390096]
[1742632512236,0.42076282,84205.0,84204.0,0.31389431]
[1742632512541,0.23809163,84205.0,84204.0,0.5684043]
[1742632513032,0.30269163,84205.0,84204.0,0.5684043]
[1742632514026,0.42149453,84205.0,84204.0,0.5684043]
[1742632515542,0.30269163,84205.0,84204.0,0.5684043]
[1742632515726,0.42149453,84205.0,84204.0,0.5684043]
[1742632517242,0.42149453,84205.0,84204.0,0.9292043]
[1742632517837,0.30269163,84205.0,84204.0,0.9292043]
[1742632521050,0.43454817,84205.0,84204.0,0.9292043]
[1742632521235,0.43458816,84205.0,84204.0,0.9292043]
[1742632521433,0.43458816,84205.0,84204.0,0.94429209]
[1742632523745,0.36798816,84205.0,84204.0,0.94429209]
[1742632524851,0.37098816,84205.0,84204.0,0.94429209]
[1742632525040,0.23913162,84205.0,84204.0,0.94429209]
[1742632526147,0.23913162,84205.0,84204.0,0.94453706]
[1742632535454,0.23913162,84205.0,84204.0,0.83013706]
[1742632535649,0.23913162,84205.0,84204.0,0.94425706]
[1742632540853,0.23913162,84205.0,84204.0,0.58345706]
[1742632543453,0.36717764,84205.0,84204.0,0.58345706]
[1742632546843,0.45260527,84205.0,84204.0,0.58345706]
[1742632548158,0.45260527,84205.0,84204.0,0.5681243]
[1742632548556,0.51570527,84205.0,84204.0,0.5681243]
[1742632549866,0.51570527,84205.0,84204.0,0.9289243]
[1742632553760,0.43438725,84205.0,84204.0,0.9289243]
[1742632555466,0.43438725,84205.0,84204.0,0.94388919]
[1742632555665,0.43438725,84205.0,84204.0,0.58308919]
[1742632555861,0.43438725,84205.0,84204.0,0.94388919]
[1742632557766,0.43438725,84205.0,84204.0,0.82976919]
[1742632557968,0.43438725,84205.0,84204.0,0.94424919]